fUST/lending_fUST_20250330
["ID","MTS","AMOUNT","RATE_DAILY","PERIOD"]
[356854251,1743336647451,-762.09,0.0002,2]
[356854253,1743336647461,-986.66,0.0002,2]
[356854254,1743336647471,-615.49,0.0002,2]
[356854256,1743336647480,-674.35,0.0002,2]
[356854258,1743336647490,-2378.15,0.0002,2]
[356854260,1743336647499,-1800.76,0.0002,2]
[356854262,1743336647508,-1297.51,0.0002,2]
[356854264,1743336647518,-500.0,0.0002,2]
[356854266,1743336647527,-500.0,0.0002,2]
[356854269,1743336647536,-1268.95,0.0002,2]
[356854271,1743336647546,-524.33,0.0002,2]
[356854272,1743336647557,-500.0,0.0002,2]
[356854274,1743336647566,-500.0,0.0002,2]
[356854277,1743336647576,-881.02,0.0002,2]
[356854278,1743336647585,-15685.99,0.0002,2]
[356854280,1743336647594,-1200.54,0.0002,2]
[356854283,1743336647603,-629.01,0.0002,2]
[356854285,1743336647612,-500.0,0.0002,2]
[356854286,1743336647622,-500.0,0.0002,2]
[356854289,1743336647631,-8052.37,0.0002,2]
[356854291,1743336647640,-946.43,0.0002,2]
[356854293,1743336647650,-503.91,0.0002,2]
[356854295,1743336647659,-500.0,0.0002,2]
[356854296,1743336647668,-2000.0,0.0002,4]
[356854298,1743336647677,-573.79,0.0002,2]
[356854300,1743336647686,-500.0,0.0002,2]
[356854302,1743336647696,-808.8,0.0002,2]
[356854303,1743336647705,-500.0,0.0002,2]
[356854304,1743336647715,-767.64,0.0002,2]
[356854305,1743336647724,-500.0,0.0002,2]
[356854306,1743336647736,-804.42,0.0002,2]
[356854307,1743336647746,-737.11,0.0002,2]
[356854308,1743336647755,-500.0,0.0002,2]
[356854309,1743336647764,-8539.25,0.0002,2]
[356854310,1743336647774,-540.62,0.0002,2]
[356854311,1743336647783,-3723.83,0.0002,2]
[356854313,1743336647792,-500.0,0.00020273,2]
[356854315,1743336647801,-500.0,0.00020273,2]
[356854317,1743336647811,-500.0,0.00020273,2]
[356854319,1743336647821,-500.0,0.00020273,2]
[356854321,1743336647830,-728.46,0.00020273,2]
[356854323,1743336647839,-997.04,0.00020273,2]
[356854325,1743336647849,-500.0,0.00020273,2]
[356854327,1743336647858,-500.0,0.00020273,2]
[356854330,1743336647868,-500.0,0.00020273,2]
[356854332,1743336647877,-971.02,0.00020273,2]
[356854334,1743336647886,-500.0,0.00020273,2]
[356854336,1743336647896,-500.0,0.00020273,2]
[356854338,1743336647905,-500.0,0.00020273,2]
[356854340,1743336647915,-500.0,0.00020273,2]
[356854342,1743336647924,-586.47,0.00020273,2]
[356854344,1743336647933,-651.92,0.00020273,2]
[356854346,1743336647942,-500.0,0.00020273,2]
[356854348,1743336647951,-500.0,0.00020273,2]
[356854350,1743336647960,-335.2173004,0.00020273,2]
[356854351,1743336647969,-500.0,0.00020273,2]
[356854353,1743336647978,-500.0,0.00020273,2]
[356854355,1743336647987,-500.0,0.00020273,2]
[356854357,1743336647997,-500.0,0.00020273,2]
[356854360,1743336648007,-500.0,0.00020273,2]
[356854362,1743336648016,-694.25,0.00020273,2]
[356854363,1743336648025,-500.0,0.00020273,2]
[356854365,1743336648034,-909.26,0.00020273,2]
[356854367,1743336648044,-500.0,0.00020273,2]
[356854369,1743336648053,-508.9,0.00020273,2]
[356854371,1743336648061,-656.04,0.00020273,2]
[356854372,1743336648070,-500.0,0.00020273,2]
[356854373,1743336648079,-500.0,0.00020273,2]
[356854374,1743336648088,-500.0,0.00020273,2]
[356854375,1743336648099,-500.0,0.00020273,2]
[356854376,1743336648108,-500.0,0.00020273,2]
[356854377,1743336648288,-451.69477487,0.00020273,2]
[356854378,1743336648299,-500.0,0.00020273,2]
[356854379,1743336648309,-500.0,0.00020273,2]
[356854381,1743336648318,-500.0,0.00020273,2]
[356854383,1743336648328,-500.0,0.00020273,2]
[356854385,1743336648338,-500.0,0.00020273,2]
[356854387,1743336648348,-500.0,0.00020273,2]
[356854389,1743336648357,-500.0,0.00020273,2]
[356854391,1743336648367,-770.23,0.00020273,2]
[356854393,1743336648377,-1426.76,0.00020273,2]
[356854395,1743336648386,-500.0,0.00020273,2]
[356854397,1743336648396,-739.19,0.00020273,2]
[356854399,1743336648405,-500.0,0.00020273,2]
[356854401,1743336648414,-500.0,0.00020273,2]
[356854403,1743336648424,-500.0,0.00020273,2]
[356854404,1743336648433,-500.0,0.00020273,2]
[356854407,1743336648443,-500.0,0.00020273,2]
[356854409,1743336648452,-500.0,0.00020273,2]
[356854410,1743336648463,-500.0,0.00020273,2]
[356854413,1743336648473,-500.0,0.00020273,2]
[356854415,1743336648483,-572.06,0.00020273,2]
[356854417,1743336648492,-500.0,0.00020273,2]
[356854418,1743336648501,-356.34241921,0.00020273,2]
[356854420,1743336648511,-500.0,0.00020273,2]
[356854422,1743336648521,-820.71,0.00020273,2]
[356854425,1743336648531,-500.0,0.00020273,2]
[356854427,1743336648540,-792.51,0.00020273,2]
[356854429,1743336648549,-500.0,0.00020273,2]
[356854431,1743336648559,-500.0,0.00020273,2]
[356854432,1743336648568,-500.0,0.00020273,2]
[356854435,1743336648578,-500.0,0.00020273,2]
[356854437,1743336648588,-643.09,0.00020273,2]
[356854439,1743336648598,-500.0,0.00020273,2]
[356854441,1743336648608,-500.0,0.00020273,2]
[356854443,1743336648617,-500.0,0.00020273,2]
[356854445,1743336648626,-500.0,0.00020273,2]
[356854447,1743336648636,-500.0,0.00020273,2]
[356854449,1743336648646,-500.0,0.00020273,2]
[356854451,1743336648655,-500.0,0.00020273,2]
[356854452,1743336648664,-1373.59,0.00020273,2]
[356854454,1743336648673,-500.0,0.00020273,2]
[356854457,1743336648683,-1089.35,0.00020273,2]
[356854459,1743336648692,-510.53,0.00020273,2]
[356854461,1743336648702,-500.0,0.00020273,2]
[356854463,1743336648712,-786.5,0.00020273,2]
[356854465,1743336648721,-500.0,0.00020273,2]
[356854467,1743336648732,-500.0,0.00020273,2]
[356854469,1743336648745,-1995.85,0.00020273,2]
[356854471,1743336648755,-500.0,0.00020273,2]
[356854473,1743336648765,-200.0,0.00020273,2]
[356854475,1743336648775,-1928.93,0.00020273,2]
[356854477,1743336648785,-523.74,0.00020273,2]
[356854479,1743336648795,-500.0,0.00020273,2]
[356854481,1743336648805,-523.69,0.00020273,2]
[356854483,1743336648816,-500.0,0.00020273,2]
[356854485,1743336648826,-513.67,0.00020273,2]
[356854487,1743336648835,-1946.49,0.00020273,2]
[356854489,1743336648845,-512.33,0.00020273,2]
[356854491,1743336648855,-1442.4,0.00020273,2]
[356854493,1743336648865,-520.86776226,0.00020273,2]
[356854495,1743336648874,-500.0,0.00020273,2]
[356854497,1743336648884,-514.51,0.00020273,2]
[356854499,1743336648893,-500.0,0.00020273,2]
[356854501,1743336648903,-500.0,0.00020273,2]
[356854503,1743336648912,-990.4,0.00020273,2]
[356854505,1743336648922,-942.64,0.00020273,2]
[356854507,1743336648931,-500.0,0.00020273,2]
[356854509,1743336648941,-500.0,0.00020273,2]
[356854511,1743336648950,-500.0,0.00020273,2]
[356854513,1743336648959,-990.42,0.00020273,2]
[356854515,1743336648969,-500.0,0.00020273,2]
[356854517,1743336648979,-500.0,0.00020273,2]
[356854518,1743336648988,-500.0,0.00020273,2]
[356854519,1743336648997,-500.0,0.00020273,2]
[356854520,1743336649006,-500.0,0.00020273,2]
[356854521,1743336649015,-500.0,0.00020273,2]
[356854522,1743336649024,-500.0,0.00020273,2]
[356854523,1743336649034,-2586.18,0.00020273,2]
[356854524,1743336649043,-1024.32,0.00020273,2]
[356854525,1743336649053,-500.0,0.00020273,2]
[356854526,1743336649062,-1087.6,0.00020273,2]
[356854527,1743336649072,-516.69,0.00020273,2]
[356854528,1743336649080,-500.0,0.00020273,2]
[356854529,1743336649090,-864.19,0.00020273,2]
[356854531,1743336649100,-683.23,0.00020273,2]
[356854533,1743336649110,-903.38,0.00020273,2]
[356854535,1743336649120,-500.0,0.00020273,2]
[356854537,1743336649131,-937.8,0.00020273,2]
[356854539,1743336649141,-500.0,0.00020273,2]
[356854541,1743336649150,-1131.56,0.00020273,2]
[356854543,1743336649159,-798.99,0.00020273,2]
[356854545,1743336649169,-1481.39,0.00020273,2]
[356854547,1743336649179,-500.0,0.00020273,2]
[356854549,1743336649188,-500.0,0.00020273,2]
[356854551,1743336649198,-500.0,0.00020273,2]
[356854553,1743336649207,-500.0,0.00020273,2]
[356854555,1743336649216,-517.61,0.00020273,2]
[356854557,1743336649226,-500.0,0.00020273,2]
[356854559,1743336649235,-668.21,0.00020273,2]
[356854561,1743336649245,-687.74,0.00020273,2]
[356854563,1743336649255,-899.15,0.00020273,2]
[356854565,1743336649264,-707.97,0.00020273,2]
[356854567,1743336649274,-500.0,0.00020273,2]
[356854569,1743336649284,-1296.96,0.00020273,2]
[356854571,1743336649293,-500.0,0.00020273,2]
[356854573,1743336649303,-500.0,0.00020273,2]
[356854575,1743336649312,-500.0,0.00020273,2]
[356854577,1743336649322,-1345.33,0.00020273,2]
[356854579,1743336649331,-500.0,0.00020273,2]
[356854581,1743336649341,-895.06,0.00020273,2]
[356854583,1743336649351,-500.0,0.00020273,2]
[356854585,1743336649363,-2501.82,0.00020273,2]
[356854587,1743336649372,-500.0,0.00020273,2]
[356854589,1743336649382,-914.71,0.00020273,2]
[356854591,1743336649393,-500.0,0.00020273,2]
[356854593,1743336649403,-737.75,0.00020273,2]
[356854595,1743336649413,-500.0,0.00020273,2]
[356854597,1743336649422,-500.0,0.00020273,2]
[356854599,1743336649432,-4129.73,0.00020273,2]
[356854601,1743336649442,-562.71404828,0.00020273,2]
[356854603,1743336649452,-500.0,0.00020273,2]
[356854605,1743336649463,-776.32,0.00020273,2]
[356854608,1743336649472,-4902.77,0.00020273,2]
[356854610,1743336649483,-500.0,0.00020273,2]
[356854612,1743336649492,-500.0,0.00020273,2]
[356854613,1743336649502,-500.0,0.00020273,2]
[356854615,1743336649512,-500.0,0.00020273,2]
[356854617,1743336649520,-1672.32,0.00020273,2]
[356854619,1743336649530,-824.37,0.00020273,2]
[356854621,1743336649539,-643.85,0.00020273,2]
[356854623,1743336649548,-284.54679321,0.00020273,2]
[356854625,1743336649558,-4151.45,0.00020273,2]
[356854627,1743336649568,-2985.11,0.00020273,2]
[356854629,1743336649578,-174.68120549,0.00020273,2]
[356854631,1743336649588,-500.0,0.00020273,2]
[356854633,1743336649597,-1413.31,0.00020273,2]
[356854635,1743336649608,-500.0,0.00020273,2]
[356854637,1743336649618,-500.0,0.00020273,2]
[356854640,1743336649627,-500.0,0.00020273,2]
[356854642,1743336649636,-500.0,0.00020273,2]
[356854644,1743336649646,-707.76,0.00020273,2]
[356854645,1743336649656,-500.0,0.00020273,2]
[356854648,1743336649666,-699.65,0.00020273,2]
[356854650,1743336649675,-500.0,0.00020273,2]
[356854651,1743336649684,-500.0,0.00020273,2]
[356854653,1743336649694,-1550.34,0.00020273,2]
[356854655,1743336649703,-736.27,0.00020273,2]
[356854657,1743336649713,-552.72,0.00020273,2]
[356854659,1743336649722,-381.40983869,0.00020273,2]
[356854661,1743336649732,-944.78,0.00020273,2]
[356854664,1743336649745,-4192.73,0.00020273,2]
[356854666,1743336649755,-1984.0,0.00020273,2]
[356854668,1743336649764,-500.0,0.00020273,2]
[356854670,1743336649773,-500.0,0.00020273,2]
[356854672,1743336649785,-1610.13,0.00020273,2]
[356854674,1743336649795,-4062.87,0.00020273,2]
[356854676,1743336649804,-500.0,0.00020273,2]
[356854678,1743336649815,-527.52,0.00020273,2]
[356854680,1743336649824,-551.98,0.00020273,2]
[356854682,1743336649834,-5745.56,0.00020273,2]
[356854684,1743336649843,-1105.77,0.00020273,2]
[356854686,1743336649852,-2204.43,0.00020273,2]
[356854688,1743336649862,-500.57479975,0.00020273,2]
[356854690,1743336649872,-1201.49,0.00020273,2]
[356854692,1743336649881,-2246.36,0.00020273,2]
[356854694,1743336649892,-500.0,0.00020273,2]
[356854696,1743336649901,-810.23,0.00020273,2]
[356854697,1743336649910,-1362.91,0.00020273,2]
[356854699,1743336649920,-2003.96,0.00020273,2]
[356854701,1743336649929,-929.62,0.00020273,2]
[356854703,1743336649939,-878.79,0.00020273,2]
[356854705,1743336649948,-500.0,0.00020273,2]
[356854707,1743336649957,-500.0,0.00020273,2]
[356854709,1743336649966,-500.0,0.00020273,2]
[356854711,1743336649976,-522.62,0.00020273,2]
[356854713,1743336649986,-3169.96,0.00020273,2]
[356854715,1743336649995,-500.0,0.00020273,2]
[356854717,1743336650004,-500.0,0.00020273,2]
[356854719,1743336650013,-863.37,0.00020273,2]
[356854721,1743336650022,-500.0,0.00020273,2]
[356854723,1743336650031,-784.51,0.00020273,2]
[356854725,1743336650040,-2366.19,0.00020273,2]
[356854727,1743336650049,-678.48,0.00020273,2]
[356854729,1743336650058,-5982.6,0.00020273,2]
[356854731,1743336650068,-500.0,0.00020273,2]
[356854733,1743336650077,-500.0,0.00020273,2]
[356854735,1743336650086,-500.0,0.00020273,2]
[356854737,1743336650095,-3762.67,0.00020273,2]
[356854739,1743336650104,-537.47534139,0.00020273,2]
[356854741,1743336650113,-15868.4,0.00020273,2]
[356854743,1743336650122,-710.42,0.00020273,2]
[356854745,1743336650131,-500.0,0.00020273,2]
[356854747,1743336650141,-6137.71,0.00020273,2]
[356854749,1743336650150,-4594.19,0.00020273,2]
[356854751,1743336650159,-792.46,0.00020273,2]
[356854753,1743336650168,-704.22,0.00020273,2]
[356854755,1743336650177,-500.0,0.00020273,2]
[356854757,1743336650186,-2499.63,0.00020273,2]
[356854759,1743336650196,-1234.8,0.00020273,2]
[356854761,1743336650205,-194.86,0.00020273,2]
[356854763,1743336650214,-5195.9,0.00020273,2]
[356854765,1743336650223,-1838.27,0.00020273,2]
[356854767,1743336650232,-12960.42,0.00020273,2]
[356854769,1743336650242,-500.0,0.00020273,2]
[356854771,1743336650251,-1000.0,0.00020273,7]
[356854774,1743336650261,-2670.09,0.00020273,2]
[356854776,1743336650270,-500.0,0.00020273,2]
[356854778,1743336650279,-500.0,0.00020273,2]
[356854779,1743336650289,-2660.8,0.00020273,2]
[356854781,1743336650298,-5869.07,0.00020273,2]
[356854783,1743336650307,-986.66,0.00020273,2]
[356854785,1743336650317,-762.09,0.00020273,2]
[356854787,1743336650326,-615.49,0.00020273,2]
[356854789,1743336650335,-674.35,0.00020273,2]
[356854791,1743336650344,-2378.15,0.00020273,2]
[356854793,1743336650353,-1800.76,0.00020273,2]
[356854795,1743336650362,-1297.51,0.00020273,2]
[356854797,1743336650371,-500.0,0.00020273,2]
[356854799,1743336650380,-500.0,0.00020273,2]
[356854801,1743336650389,-1268.95,0.00020273,2]
[356854803,1743336650399,-524.33,0.00020273,2]
[356854805,1743336650407,-546.79258272,0.00020273,2]
[356854807,1743336650417,-500.0,0.00020273,2]
[356854809,1743336650426,-881.02,0.00020273,2]
[356854811,1743336650435,-15685.99,0.00020273,2]
[356854813,1743336650444,-1200.54,0.00020273,2]
[356854814,1743336650453,-500.0,0.00020273,2]
[356854815,1743336650462,-629.01,0.00020273,2]
[356854816,1743336650471,-500.0,0.00020273,2]
[356854817,1743336650480,-8052.37,0.00020273,2]
[356854818,1743336650489,-946.43,0.00020273,2]
[356854819,1743336650499,-503.91,0.00020273,2]
[356854820,1743336650508,-573.79,0.00020273,2]
[356854821,1743336650517,-500.0,0.00020273,2]
[356854822,1743336650527,-808.8,0.00020273,2]
[356854824,1743336650536,-500.0,0.00020273,2]
[356854826,1743336650546,-767.64,0.00020273,2]
[356854829,1743336650555,-500.0,0.00020273,2]
[356854831,1743336650567,-804.42,0.00020273,2]
[356854833,1743336650576,-737.11,0.00020273,2]
[356854835,1743336650584,-500.0,0.00020273,2]
[356854837,1743336650594,-8539.25,0.00020273,2]
[356854839,1743336650603,-540.62,0.00020273,2]
[356854841,1743336650612,-3723.83,0.00020273,2]
[356854843,1743336650621,-500.0,0.00020547,2]
[356854845,1743336650630,-500.0,0.00020547,2]
[356854847,1743336650640,-500.0,0.00020547,2]
[356854849,1743336650649,-500.0,0.00020547,2]
[356854851,1743336650659,-728.46,0.00020547,2]
[356854852,1743336650668,-997.04,0.00020547,2]
[356854854,1743336650677,-500.0,0.00020547,2]
[356854857,1743336650686,-500.0,0.00020547,2]
[356854858,1743336650695,-500.0,0.00020547,2]
[356854860,1743336650704,-971.02,0.00020547,2]
[356854863,1743336650713,-500.0,0.00020547,2]
[356854865,1743336650723,-500.0,0.00020547,2]
[356854867,1743336650732,-500.0,0.00020547,2]
[356854868,1743336650745,-500.0,0.00020547,2]
[356854871,1743336650754,-586.47,0.00020547,2]
[356854872,1743336650763,-651.92,0.00020547,2]
[356854874,1743336650772,-500.0,0.00020547,2]
[356854876,1743336650782,-500.0,0.00020547,2]
[356854878,1743336650791,-162.16356795,0.00020547,2]
[356854880,1743336650800,-500.0,0.00020547,2]
[356854882,1743336650810,-500.0,0.00020547,2]
[356854884,1743336650820,-500.0,0.00020547,2]
[356854886,1743336650829,-500.0,0.00020547,2]
[356854888,1743336650838,-694.25,0.00020547,2]
[356854890,1743336650847,-500.0,0.00020547,2]
[356854892,1743336650856,-909.26,0.00020547,2]
[356854894,1743336650866,-500.0,0.00020547,2]
[356854897,1743336650875,-508.9,0.00020547,2]
[356854899,1743336650884,-656.04,0.00020547,2]
[356854900,1743336650894,-500.0,0.00020547,2]
[356854903,1743336650904,-500.0,0.00020547,2]
[356854905,1743336650913,-500.0,0.00020547,2]
[356854907,1743336650922,-500.0,0.00020547,2]
[356854909,1743336650932,-499.84418366,0.00020547,2]
[356854911,1743336650941,-631.31503637,0.00020547,2]
[356854913,1743336650950,-500.0,0.00020547,2]
[356854914,1743336650959,-500.0,0.00020547,2]
[356854916,1743336650968,-500.0,0.00020547,2]
[356854918,1743336650977,-500.0,0.00020547,2]
[356854920,1743336650986,-500.0,0.00020547,2]
[356854923,1743336650997,-500.0,0.00020547,2]
[356854925,1743336651006,-770.23,0.00020547,2]
[356854927,1743336651015,-1426.76,0.00020547,2]
[356854929,1743336651025,-500.0,0.00020547,2]
[356854931,1743336651034,-739.19,0.00020547,2]
[356854933,1743336651043,-500.0,0.00020547,2]
[356854935,1743336651052,-500.0,0.00020547,2]
[356854937,1743336651061,-500.0,0.00020547,2]
[356854939,1743336651070,-500.0,0.00020547,2]
[356854941,1743336651078,-500.0,0.00020547,2]
[356854943,1743336651088,-500.0,0.00020547,2]
[356854945,1743336651097,-500.0,0.00020547,2]
[356854946,1743336651107,-355.20009161,0.00020547,2]
[356854949,1743336651116,-572.06,0.00020547,2]
[356854950,1743336651125,-500.0,0.00020547,2]
[356854952,1743336651134,-500.0,0.00020547,2]
[356854954,1743336651143,-820.71,0.00020547,2]
[356854956,1743336651152,-500.0,0.00020547,2]
[356854958,1743336651161,-792.51,0.00020547,2]
[356854960,1743336651171,-500.0,0.00020547,2]
[356854961,1743336651180,-500.0,0.00020547,2]
[356854962,1743336651189,-500.0,0.00020547,2]
[356854963,1743336651199,-500.0,0.00020547,2]
[356854964,1743336651207,-643.09,0.00020547,2]
[356854965,1743336651216,-500.0,0.00020547,2]
[356854966,1743336651225,-500.0,0.00020547,2]
[356854967,1743336651235,-500.0,0.00020547,2]
[356854968,1743336651244,-500.0,0.00020547,2]
[356854969,1743336651253,-500.0,0.00020547,2]
[356854970,1743336651262,-500.0,0.00020547,2]
[356854971,1743336651271,-500.0,0.00020547,2]
[356854972,1743336651280,-1373.59,0.00020547,2]
[356854973,1743336651289,-500.0,0.00020547,2]
[356854974,1743336651298,-1089.35,0.00020547,2]
[356854975,1743336651454,-510.53,0.00020547,2]
[356854976,1743336651465,-500.0,0.00020547,2]
[356854977,1743336651474,-786.5,0.00020547,2]
[356854978,1743336651484,-500.0,0.00020547,2]
[356854979,1743336651493,-500.0,0.00020547,2]
[356854980,1743336651503,-1995.85,0.00020547,2]
[356854981,1743336651512,-500.0,0.00020547,2]
[356854982,1743336651521,-200.0,0.00020547,2]
[356854983,1743336651530,-1928.93,0.00020547,2]
[356854984,1743336651539,-523.74,0.00020547,2]
[356854985,1743336651549,-500.0,0.00020547,2]
[356854986,1743336651558,-523.69,0.00020547,2]
[356854987,1743336651567,-500.0,0.00020547,2]
[356854988,1743336651578,-513.67,0.00020547,2]
[356854989,1743336651587,-1946.49,0.00020547,2]
[356854990,1743336651596,-512.33,0.00020547,2]
[356854991,1743336651605,-1442.4,0.00020547,2]
[356854992,1743336651615,-500.0,0.00020547,2]
[356854993,1743336651624,-514.51,0.00020547,2]
[356854994,1743336651634,-500.0,0.00020547,2]
[356854995,1743336651643,-500.0,0.00020547,2]
[356854996,1743336651652,-990.4,0.00020547,2]
[356854997,1743336651661,-942.64,0.00020547,2]
[356854998,1743336651671,-500.0,0.00020547,2]
[356854999,1743336651680,-500.0,0.00020547,2]
[356855000,1743336651689,-500.0,0.00020547,2]
[356855001,1743336651698,-990.42,0.00020547,2]
[356855002,1743336651707,-500.0,0.00020547,2]
[356855003,1743336651716,-150.19224549,0.00020547,2]
[356855004,1743336651725,-500.0,0.00020547,2]
[356855005,1743336651735,-500.0,0.00020547,2]
[356855006,1743336651746,-500.0,0.00020547,2]
[356855007,1743336651755,-500.0,0.00020547,2]
[356855008,1743336651764,-500.0,0.00020547,2]
[356855009,1743336651773,-2586.18,0.00020547,2]
[356855010,1743336651783,-1024.32,0.00020547,2]
[356855011,1743336651792,-500.0,0.00020547,2]
[356855012,1743336651801,-1087.6,0.00020547,2]
[356855013,1743336651810,-516.69,0.00020547,2]
[356855014,1743336651821,-500.0,0.00020547,2]
[356855015,1743336651830,-864.19,0.00020547,2]
[356855016,1743336651839,-683.23,0.00020547,2]
[356855017,1743336651848,-903.38,0.00020547,2]
[356855018,1743336651858,-500.0,0.00020547,2]
[356855019,1743336651867,-937.8,0.00020547,2]
[356855020,1743336651876,-500.0,0.00020547,2]
[356855021,1743336651885,-1131.56,0.00020547,2]
[356855022,1743336651895,-798.99,0.00020547,2]
[356855023,1743336651904,-1481.39,0.00020547,2]
[356855024,1743336651913,-500.0,0.00020547,2]
[356855025,1743336651922,-598.04297463,0.00020547,2]
[356855027,1743336651932,-500.0,0.00020547,2]
[356855029,1743336651941,-500.0,0.00020547,2]
[356855031,1743336651950,-517.61,0.00020547,2]
[356855033,1743336651958,-500.0,0.00020547,2]
[356855035,1743336651967,-668.21,0.00020547,2]
[356855037,1743336651976,-687.74,0.00020547,2]
[356855039,1743336651986,-899.15,0.00020547,2]
[356855041,1743336651995,-707.97,0.00020547,2]
[356855043,1743336652003,-594.06319904,0.00020547,2]
[356855045,1743336652012,-1296.96,0.00020547,2]
[356855047,1743336652021,-500.0,0.00020547,2]
[356855049,1743336652030,-500.0,0.00020547,2]
[356855051,1743336652039,-500.0,0.00020547,2]
[356855053,1743336652048,-1345.33,0.00020547,2]
[356855055,1743336652057,-500.0,0.00020547,2]
[356855057,1743336652066,-895.06,0.00020547,2]
[356855059,1743336652075,-500.0,0.00020547,2]
[356855061,1743336652084,-2501.82,0.00020547,2]
[356855063,1743336652093,-500.0,0.00020547,2]
[356855065,1743336652102,-914.71,0.00020547,2]
[356855067,1743336652112,-500.0,0.00020547,2]
[356855069,1743336652121,-737.75,0.00020547,2]
[356855071,1743336652130,-500.0,0.00020547,2]
[356855073,1743336652140,-500.0,0.00020547,2]
[356855075,1743336652149,-4129.73,0.00020547,2]
[356855077,1743336652159,-500.0,0.00020547,2]
[356855079,1743336652168,-776.32,0.00020547,2]
[356855081,1743336652177,-4902.77,0.00020547,2]
[356855083,1743336652186,-500.0,0.00020547,2]
[356855085,1743336652196,-500.0,0.00020547,2]
[356855087,1743336652206,-500.0,0.00020547,2]
[356855089,1743336652215,-500.0,0.00020547,2]
[356855091,1743336652223,-1672.32,0.00020547,2]
[356855093,1743336652233,-643.85,0.00020547,2]
[356855094,1743336652243,-824.37,0.00020547,2]
[356855097,1743336652252,-4151.45,0.00020547,2]
[356855099,1743336652262,-2985.11,0.00020547,2]
[356855101,1743336652271,-500.0,0.00020547,2]
[356855102,1743336652281,-1413.31,0.00020547,2]
[356855105,1743336652291,-500.0,0.00020547,2]
[356855107,1743336652300,-500.0,0.00020547,2]
[356855108,1743336652309,-500.0,0.00020547,2]
[356855110,1743336652319,-500.0,0.00020547,2]
[356855112,1743336652328,-707.76,0.00020547,2]
[356855114,1743336652338,-500.0,0.00020547,2]
[356855116,1743336652348,-699.65,0.00020547,2]
[356855118,1743336652358,-500.0,0.00020547,2]
[356855120,1743336652367,-500.0,0.00020547,2]
[356855122,1743336652376,-1550.34,0.00020547,2]
[356855123,1743336652385,-736.27,0.00020547,2]
[356855125,1743336652394,-552.72,0.00020547,2]
[356855126,1743336652404,-944.78,0.00020547,2]
[356855128,1743336652414,-1984.0,0.00020547,2]
[356855129,1743336652423,-4192.73,0.00020547,2]
[356855131,1743336652432,-500.0,0.00020547,2]
[356855133,1743336652441,-500.0,0.00020547,2]
[356855134,1743336652452,-4062.87,0.00020547,2]
[356855136,1743336652461,-1610.13,0.00020547,2]
[356855137,1743336652470,-500.0,0.00020547,2]
[356855139,1743336652480,-527.52,0.00020547,2]